fUSD/lending_fUSD_20240820
["ID","MTS","AMOUNT","RATE_DAILY","PERIOD"]
[335338806,1724127038326,-500.0,0.00010765,2]
[335338807,1724127038335,-500.0,0.00010773,2]
[335338808,1724127038344,-949.01086108,0.00010799,2]
[335338809,1724127038353,-687.53484988,0.00010799,2]
[335338810,1724127038362,-402.84503134,0.000108,2]
[335338811,1724127038371,-500.0,0.00010812,2]
[335338812,1724127038381,-5846.0,0.00010831,2]
[335338813,1724127038390,-1674.0,0.00010831,2]
[335338814,1724127038399,-289.0,0.00010831,2]
[335338815,1724127038408,-3727.0,0.00010831,2]
[335338816,1724127038417,-1205.0,0.00010831,2]
[335338817,1724127038426,-21775.0,0.00010831,2]
[335338818,1724127038435,-4528.03384534,0.00010839,2]
[335338819,1724127038445,-266.39177733,0.00010852,2]
[335338820,1724127038454,-500.0,0.00010855,2]
[335338821,1724127038463,-500.0,0.00010862,2]
[335338822,1724127038472,-2100.0,0.00010862,2]
[335338823,1724127038481,-880.0,0.00010862,2]
[335338824,1724127038490,-1513.01065829,0.00010871,2]
[335338825,1724127038499,-296.0,0.00010871,2]
[335338826,1724127038508,-156.33,0.00010887,2]
[335338827,1724127038517,-650.3528601,0.00010888,2]
[335338828,1724127038527,-1040.44716,0.0001089,2]
[335338829,1724127038536,-151.54817037,0.00010893,2]
[335338830,1724127038551,-500.0,0.00010897,2]
[335338831,1724127038561,-500.0,0.000109,2]
[335338832,1724127038570,-511.72345297,0.000109,2]
[335338833,1724127038579,-500.0,0.00010908,2]
[335338834,1724127038588,-500.0,0.00010932,2]
[335338835,1724127038597,-2100.0,0.00010934,2]
[335338836,1724127038606,-500.0,0.00010937,2]
[335338837,1724127038616,-500.0,0.00010942,2]
[335338838,1724127038625,-2000.0,0.00010949,2]
[335338839,1724127038634,-1500.0,0.00010952,2]
[335338840,1724127038643,-250.0,0.00010959,2]
[335338841,1724127038653,-151.94,0.00010959,2]
[335338842,1724127038662,-218.88,0.0001096,2]
[335338843,1724127038671,-150.245,0.00010961,2]
[335338844,1724127038681,-190.924,0.00010961,2]
[335338845,1724127038690,-154.67,0.00010961,2]
[335338846,1724127038699,-187.341,0.00010961,2]
[335338847,1724127038708,-261.435,0.00010961,2]
[335338848,1724127038718,-151.464,0.00010961,2]
[335338849,1724127038726,-1543.0,0.00010961,2]
[335338850,1724127038736,-623.0,0.00010961,2]
[335338851,1724127038746,-1923.0,0.00010961,2]
[335338852,1724127038924,-1258.0,0.00010961,2]
[335338853,1724127038935,-150.0,0.00010961,2]
[335338854,1724127038945,-556.0,0.00010961,2]
[335338855,1724127038954,-1137.0,0.00010961,2]
[335338856,1724127038963,-447.0,0.00010961,2]
[335338857,1724127038973,-810.0,0.00010961,2]
[335338858,1724127038983,-551.0,0.00010961,2]
[335338859,1724127038992,-150.0,0.00010961,2]
[335338860,1724127039001,-1896.0,0.00010961,2]
[335338861,1724127039011,-500.0,0.00010966,2]
[335338862,1724127039020,-200.0,0.00010973,2]
[335338863,1724127039029,-1050.97286875,0.00010988,2]
[335338864,1724127039038,-150.69683038,0.00010991,2]
[335338865,1724127039049,-276.01616267,0.00010993,2]
[335338866,1724127039058,-405.80102707,0.00010994,2]
[335338867,1724127039067,-618.1116044,0.00010994,2]
[335338868,1724127039077,-500.0,0.00010998,2]
[335338869,1724127039087,-277.76276379,0.00010999,2]
[335338870,1724127039097,-500.0,0.00010999,2]
[335338871,1724127039107,-500.0,0.00010999,2]
[335338872,1724127039116,-500.0,0.00010999,2]
[335338873,1724127039126,-500.0,0.00010999,2]
[335338874,1724127039135,-500.0,0.00010999,2]
[335338875,1724127039145,-500.0,0.00010999,2]
[335338876,1724127039156,-500.0,0.00010999,2]
[335338877,1724127039167,-500.0,0.00010999,2]
[335338878,1724127039176,-284.93563115,0.00010999,2]
[335338879,1724127039186,-500.0,0.00010999,2]
[335338880,1724127039195,-260.54266588,0.00010999,2]
[335338881,1724127039205,-500.0,0.00010999,2]
[335338882,1724127039214,-500.0,0.00010999,2]
[335338883,1724127039224,-500.0,0.00010999,2]
[335338884,1724127039236,-500.0,0.00010999,2]
[335338885,1724127039246,-570.0,0.00011,2]
[335338886,1724127039256,-518970.66596896,0.00011,2]
[335338887,1724127039265,-7344003.04111555,0.00011,2]
[335338888,1724127039280,-617.53442811,0.00011,2]
[335338889,1724127039292,-1029.980762,0.00011,2]
[335338890,1724127039806,-512.93754881,9.999e-05,2]
[335338891,1724127039816,-399.12062519,0.00011,2]
[335338948,1724127045931,-200.0,0.00010973,2]
[335338949,1724127045940,-510.0,0.00011,2]
[335338950,1724127045950,-7749.42931972,0.00011,2]
[335339115,1724127111015,462.62,8.219e-05,2]
[335339116,1724127168773,822.4,9.734e-05,2]
[335339118,1724127267536,1311.33528181,9.734e-05,2]
[335339119,1724127293101,166.17,9.725e-05,2]
[335339120,1724127320530,1313.06325569,9.734e-05,2]
[335339121,1724127403022,207.04908879,9.74e-05,2]
[335339122,1724127403050,465.54091121,9.74e-05,2]
[335339123,1724127426569,155.0,9.899e-05,2]
[335339124,1724127429637,164.16,7.005e-05,2]
[335339125,1724127429998,164.16,8.014e-05,2]
[335339126,1724127430354,164.16,9.023e-05,2]
[335339127,1724127432534,1311.0864134,9.734e-05,2]
[335339136,1724127569395,10471.38,9.726e-05,2]
[335339137,1724127584952,462.93,8.219e-05,2]
[335339138,1724127620553,1311.0864134,9.734e-05,2]
[335339139,1724127700564,1311.0864134,9.734e-05,2]
[335339148,1724127763755,342.08,9.694e-05,2]
[335339151,1724127801562,1311.0864134,9.734e-05,2]
[335339153,1724127922140,173.26,9.707e-05,2]
[335339154,1724127968361,824.33212466,9.899e-05,2]
[335339157,1724128094197,439.78,8.219e-05,2]
[335339164,1724128166675,155.04,6.971e-05,2]
[335339165,1724128167226,155.04,8.099e-05,2]
[335339166,1724128167599,155.04,9.227e-05,2]
[335339202,1724128237882,-1284.61198642,9.954e-05,2]
[335339203,1724128237892,-649.99211963,9.962e-05,2]
[335339204,1724128237901,-2141.55397307,0.0001,2]
[335339205,1724128237911,-500.0,0.00010054,2]
[335339206,1724128237920,-900.0,0.00010073,2]
[335339207,1724128237929,-300.0,0.000101,3]
[335339208,1724128237939,-402.19299026,0.00010104,2]
[335339209,1724128237950,-97.80700974,0.00010104,2]
[335339210,1724128237959,-959.40429015,0.00010118,2]
[335339211,1724128237968,-500.0,0.00010128,2]
[335339212,1724128237978,-1800.0,0.00010162,2]
[335339213,1724128237988,-500.0,0.00010165,2]
[335339214,1724128237997,-500.0,0.00010166,2]
[335339215,1724128238006,-500.0,0.00010183,2]
[335339216,1724128238015,-600.0,0.000102,3]
[335339217,1724128238025,-1000.0,0.000103,3]
[335339218,1724128238034,-1600.0,0.00010307,2]
[335339219,1724128238043,-500.0,0.00010343,2]
[335339220,1724128238053,-900.0,0.00010352,2]
[335339221,1724128238062,-155.04,0.00010355,2]
[335339222,1724128238071,-900.0,0.00010359,2]
[335339223,1724128238080,-500.0,0.000104,2]
[335339224,1724128238089,-1300.0,0.000104,3]
[335339225,1724128238098,-500.0,0.00010421,2]
[335339226,1724128238108,-500.0,0.00010423,2]
[335339227,1724128238117,-500.0,0.00010452,2]
[335339228,1724128238126,-424.71727826,0.00010461,2]
[335339229,1724128238137,-15.06272174,0.00010461,2]
[335339230,1724128238147,-541.35357527,0.00010477,2]
[335339231,1724128238156,-1800.0,0.00010487,2]
[335339232,1724128238165,-1700.0,0.000105,3]
[335339233,1724128238174,-500.0,0.00010503,2]
[335339234,1724128238183,-500.0,0.00010516,2]
[335339235,1724128238195,-500.0,0.00010526,2]
[335339236,1724128238205,-500.0,0.00010535,2]
[335339237,1724128238215,-500.0,0.0001059,2]
[335339238,1724128238224,-754.30370299,0.000106,2]
[335339239,1724128238237,-1045.69629701,0.000106,2]
[335339240,1724128238246,-300.0,0.000106,3]
[335339241,1724128238255,-1600.0,0.00010615,2]
[335339242,1724128238265,-300.0,0.000107,3]
[335339243,1724128238274,-500.0,0.00010703,2]
[335339244,1724128238283,-500.0,0.00010727,2]
[335339245,1724128238292,-150.0,0.00010731,2]
[335339246,1724128238302,-500.0,0.00010737,2]
[335339247,1724128238312,-482.31986787,0.00010739,2]
[335339248,1724128238323,-1317.68013213,0.00010739,2]
[335339249,1724128238332,-150.0,0.00010746,2]
[335339250,1724128238341,-150.0,0.00010753,2]
[335339251,1724128238351,-500.0,0.00010797,2]
[335339252,1724128238360,-300.0,0.000108,3]
[335339253,1724128238369,-150.0,0.00010804,2]
[335339254,1724128238378,-150.6336408,0.00010807,2]
[335339255,1724128238387,-500.0,0.00010829,2]
[335339256,1724128238396,-644.31993648,0.00010835,2]
[335339257,1724128238405,-900.0,0.00010847,2]
[335339258,1724128238414,-150.0,0.00010849,2]
[335339259,1724128238423,-526.83395276,0.00010852,2]
[335339260,1724128238432,-150.0,0.00010853,2]
[335339261,1724128238441,-150.0,0.00010858,2]
[335339262,1724128238450,-155.0,0.00010861,2]
[335339263,1724128238459,-415.2008792,0.00010861,2]
[335339264,1724128238467,-150.0,0.00010869,2]
[335339265,1724128238476,-500.0,0.00010886,2]
[335339266,1724128238486,-155.16328719,0.00010888,2]
[335339267,1724128238495,-548.03894757,0.00010888,2]
[335339268,1724128238503,-1203.35911,0.0001089,2]
[335339269,1724128238513,-874.5562,0.00010893,2]
[335339270,1724128238522,-10000.0,0.00010893,2]
[335339271,1724128238531,-155.0,0.00010899,2]
[335339272,1724128238542,-570.2645,0.000109,2]
[335339273,1724128238551,-500.0,0.000109,2]
[335339274,1724128238560,-300.0,0.000109,3]
[335339275,1724128238569,-214.36028434,0.000109,2]
[335339276,1724128238578,-341.14896864,0.000109,2]
[335339277,1724128238587,-150.0,0.00010903,2]
[335339278,1724128238596,-342.08,0.00010906,2]
[335339279,1724128238605,-500.0,0.0001092,2]
[335339280,1724128238614,-173.26,0.0001092,2]
[335339281,1724128238623,-507.95852424,0.00010934,2]
[335339282,1724128238632,-166.17,0.0001094,2]
[335339283,1724128238641,-822.4,0.00010951,2]
[335339284,1724128238650,-150.0,0.00010954,2]
[335339285,1724128238659,-250.0,0.00010959,2]
[335339286,1724128238669,-1137.0,0.00010963,2]
[335339287,1724128238678,-447.0,0.00010963,2]
[335339288,1724128238687,-810.0,0.00010963,2]
[335339289,1724128238696,-556.0,0.00010963,2]
[335339290,1724128238705,-1896.0,0.00010963,2]
[335339291,1724128238714,-551.0,0.00010963,2]
[335339292,1724128238723,-1165.0,0.00010963,2]
[335339293,1724128238732,-3319.0,0.00010963,2]
[335339294,1724128238742,-247.0,0.00010963,2]
[335339295,1724128238751,-842.359,0.00010963,2]
[335339296,1724128238760,-1077.0,0.00010963,2]
[335339297,1724128238769,-1923.0,0.00010963,2]
[335339298,1724128238778,-171.952,0.00010963,2]
[335339299,1724128238787,-3727.0,0.00010963,2]
[335339300,1724128238796,-1258.0,0.00010963,2]
[335339301,1724128238805,-5846.0,0.00010963,2]
[335339302,1724128238814,-623.0,0.00010963,2]
[335339303,1724128238824,-200.29167287,0.00010973,2]
[335339304,1724128238833,-200.0,0.00010973,2]
[335339305,1724128238842,-150.0,0.00010974,2]
[335339306,1724128238851,-500.0,0.00010989,2]
[335339307,1724128238860,-628.7660464,0.00010989,2]
[335339308,1724128238869,-900.0,0.0001099,2]
[335339309,1724128238878,-9989.72301686,0.00010993,2]
[335339310,1724128238887,-348.99877145,0.00010993,2]
[335339311,1724128238897,-250.0415261,0.00010997,2]
[335339312,1724128238906,-1640.2677404,0.00010997,2]
[335339313,1724128238915,-1800.0,0.00010997,2]
[335339314,1724128238925,-280.51728179,0.00010999,2]
[335339315,1724128238934,-284.65140432,0.00010999,2]
[335339316,1724128238943,-525.10993324,0.00010999,2]
[335339317,1724128238952,-340.70639905,0.00010999,2]
[335339318,1724128238961,-397270.15976918,0.00011,2]
[335339319,1724128238970,-3371905.52829738,0.00011,2]
[335339320,1724128239120,-1456586.07749159,0.00011,2]
[335339321,1724128239131,-81047.39394063,0.00011,2]
[335339322,1724128239146,-1438.78074722,0.00011,2]
[335339323,1724128240363,-610.065,0.00010893,2]
[335339324,1724128240373,-639.318,0.00010893,2]
[335339325,1724128240389,-3042.04280272,0.00010893,2]
[335339326,1724128240400,-5708.57419728,0.00010893,2]
[335339327,1724128240409,-10331.92580272,0.00011,2]
[335339352,1724128242904,-155.0,0.00010852,2]
[335339353,1724128242913,-2844.6587433,0.00010893,2]
[335339354,1724128242925,-7155.3412567,0.00010893,2]
[335339355,1724128242934,-1674.0,0.00010963,2]
[335339356,1724128242943,-10415.16347693,0.00011,2]
[335339358,1724128243529,-1240.38172753,0.00011,2]
[335339359,1724128243540,-1308.00000413,0.00011,2]
[335339360,1724128245886,-9955.0114,0.00010893,2]
[335339361,1724128246105,-44.9886,0.00010893,2]
[335339362,1724128246114,-1018.7543104,0.00010963,2]
[335339363,1724128377898,170.9,9.744e-05,2]
[335339364,1724128485022,3296.82,9.733e-05,2]
[335339365,1724128584757,418.08,8.219e-05,2]
[335339366,1724128673316,155.04,6.944e-05,2]
[335339367,1724128673709,155.04,8.419e-05,2]
[335339368,1724128674039,155.04,9.894e-05,2]
[335339369,1724128845978,159.97,9.695e-05,2]
[335339370,1724128905186,1000.0,9.691e-05,2]
[335339371,1724129049968,397.17,8.219e-05,2]
[335339372,1724129187375,155.04,6.958e-05,2]
[335339373,1724129187716,155.04,8.876e-05,2]
[335339374,1724129345451,164.62,9.738e-05,2]
[335339380,1724129422910,200.0,9.721e-05,2]
[335339384,1724129438102,-155.0,9.999e-05,2]
[335339385,1724129438114,-500.0,0.00010012,2]
[335339386,1724129438128,-317.39249104,0.00010026,2]
[335339387,1724129438139,-155.0,0.00010026,2]
[335339388,1724129438150,-500.0,0.00010034,2]
[335339389,1724129438162,-300.0,0.0001005,2]
[335339390,1724129438174,-50000.0,0.00010051,2]
[335339391,1724129438185,-1500.0,0.00010051,2]
[335339392,1724129438197,-1500.0,0.00010087,2]
[335339393,1724129438210,-150.0,0.00010109,2]
[335339394,1724129438220,-150.0,0.0001011,2]
[335339395,1724129438230,-500.0,0.00010123,2]
[335339396,1724129438240,-500.0,0.00010151,2]
[335339397,1724129438249,-500.0,0.00010174,2]
[335339398,1724129438259,-500.0,0.00010193,2]
[335339399,1724129438269,-500.0,0.00010263,2]
[335339400,1724129438280,-500.0,0.00010328,2]
[335339401,1724129438291,-500.0,0.00010352,2]
[335339402,1724129438302,-1500.0,0.00010354,2]
[335339403,1724129438313,-2503.70655412,0.0001042,2]
[335339404,1724129438325,-500.0,0.00010432,2]
[335339405,1724129438335,-1500.0,0.00010435,2]
[335339406,1724129438344,-397.17,0.00010459,2]
[335339407,1724129438354,-1500.0,0.00010526,2]
[335339408,1724129438365,-1500.0,0.00010561,2]
[335339409,1724129438376,-1500.0,0.00010595,2]
[335339411,1724129438387,-1500.0,0.00010724,2]
[335339413,1724129438397,-150.0,0.00010738,2]
[335339415,1724129438408,-500.0,0.00010739,2]
[335339417,1724129438419,-1500.0,0.00010747,2]
[335339419,1724129438428,-500.0,0.00010784,2]
[335339420,1724129438438,-155.04,0.00010794,2]
[335339422,1724129438448,-1500.0,0.00010815,2]
[335339424,1724129438458,-176.43925016,0.00010827,2]
[335339425,1724129438468,-243.22143177,0.00010835,2]
[335339426,1724129438478,-500.0,0.00010841,2]
[335339427,1724129438488,-150.0,0.00010843,2]
[335339428,1724129438500,-150.86,0.00010852,2]
[335339429,1724129438512,-500.0,0.00010869,2]
[335339430,1724129438524,-150.0,0.00010875,2]
[335339431,1724129438536,-500.0,0.00010879,2]
[335339432,1724129438547,-957.94483,0.0001089,2]
[335339433,1724129438557,-532.36755097,0.0001089,2]
[335339434,1724129438568,-523.08333089,0.00010899,2]
[335339435,1724129438578,-1000.0,0.00010902,2]
[335339436,1724129438589,-700.0,0.00010921,2]
[335339437,1724129438601,-200.0,0.00010936,2]
[335339438,1724129438611,-500.0,0.00010943,2]
[335339439,1724129438623,-150.0,0.00010947,2]
[335339440,1724129438635,-700.0,0.0001095,2]
[335339441,1724129438646,-150.0,0.00010951,2]
[335339442,1724129438656,-460.15,0.00010959,2]
[335339443,1724129438666,-250.0,0.00010959,2]
[335339444,1724129438678,-413.32982156,0.00010963,2]
[335339445,1724129438688,-1923.0,0.00010964,2]
[335339446,1724129438700,-623.0,0.00010964,2]
[335339447,1724129438711,-1601.438,0.00010964,2]
[335339448,1724129438723,-1258.0,0.00010964,2]
[335339449,1724129438735,-810.0,0.00010964,2]
[335339450,1724129438745,-447.0,0.00010964,2]
[335339451,1724129438755,-556.0,0.00010964,2]
[335339452,1724129438765,-1137.0,0.00010964,2]
[335339453,1724129438775,-1077.0,0.00010964,2]
[335339454,1724129438786,-551.0,0.00010964,2]
[335339455,1724129438796,-1896.0,0.00010964,2]
[335339456,1724129438807,-1165.0,0.00010964,2]
[335339457,1724129438817,-3319.0,0.00010964,2]
[335339458,1724129438828,-247.0,0.00010964,2]
[335339459,1724129438839,-764.0,0.00010964,2]
[335339460,1724129438850,-1674.0,0.00010964,2]
[335339461,1724129438859,-5846.0,0.00010964,2]
[335339462,1724129438870,-3727.0,0.00010964,2]
[335339463,1724129438880,-21775.0,0.00010964,2]
[335339464,1724129438891,-1205.0,0.00010964,2]
[335339465,1724129438902,-689.49954605,0.00010964,2]
[335339466,1724129438912,-200.08073662,0.00010973,2]
[335339467,1724129438922,-200.0,0.00010973,2]
[335339468,1724129438932,-348.26413265,0.00010993,2]
[335339469,1724129438947,-150.0,0.00010995,2]
[335339470,1724129438957,-500.0,0.00010996,2]
[335339471,1724129438967,-1792.4497882,0.00010997,2]
[335339472,1724129438979,-610.6200081,0.00010997,2]
[335339473,1724129438989,-296.6042266,0.00010997,2]
[335339474,1724129439000,-3619.1483697,0.00010997,2]
[335339475,1724129439010,-1849.2232049,0.00010998,2]
[335339476,1724129439022,-218.85021907,0.00010999,2]
[335339477,1724129439032,-155.8827471,0.00010999,2]
[335339478,1724129439043,-267527.49327694,0.00011,2]
[335339479,1724129439053,-94461.75248198,0.00011,2]
[335339480,1724129439071,-12175.48374,0.00011,2]
[335339481,1724129439084,-914.6193422,0.00011,2]
[335339482,1724129440528,-547.78273589,9.999e-05,2]
[335339483,1724129440539,-115.31448088,0.00011,2]
[335339624,1724129443829,-155.0,9.988e-05,2]
[335339625,1724129443839,-2888.6,0.0001042,2]
[335339626,1724129446114,-815.46707181,0.000101,5]
[335339627,1724129446172,-50.53292819,0.000101,5]
[335339628,1724129446181,-2992.91707181,0.0001042,2]
[335339629,1724129446193,-4118.48292819,0.0001042,2]
[335339630,1724129446202,-10238.21073715,0.00011,2]
[335339631,1724129446229,-307.10332674,0.00011,2]
[335339632,1724129446240,-3518.04920049,0.00011,2]
[335339636,1724129583841,379.12,8.219e-05,2]
[335339639,1724129780478,309.51844732,0.00017,60]
[335339640,1724129787953,171.1,9.73e-05,2]
[335339641,1724129811781,155.04,6.985e-05,2]
[335339642,1724129812312,155.04,9.725e-05,2]
[335339643,1724129917570,880.0,9.696e-05,2]
[335339644,1724130055825,293.21893831,9.899e-05,2]
[335339645,1724130063138,360.16,8.219e-05,2]
[335339652,1724130315176,155.04,7.014e-05,2]
[335339653,1724130345405,170.97,9.757e-05,2]
[335339654,1724130385457,17657.17955964,8.502e-05,2]
[335339655,1724130465769,296.0,9.67e-05,2]
[335339658,1724130574402,362.48,8.219e-05,2]
[335339661,1724130605529,150.0,9.903e-05,2]
[335339673,1724130632156,-556.26670477,9.929e-05,2]
[335339674,1724130632168,-5160.47432172,9.929e-05,2]
[335339675,1724130632177,-402.0,9.942e-05,2]
[335339676,1724130632186,-892.73569344,9.943e-05,2]
[335339677,1724130632195,-6939.13795073,9.943e-05,2]
[335339678,1724130632206,-415.98592689,9.943e-05,2]
[335339679,1724130632217,-352.9371836,9.943e-05,2]
[335339680,1724130632412,-1282.02818207,9.943e-05,2]
[335339681,1724130632424,-854.80884198,9.943e-05,2]
[335339682,1724130632439,-4835.63922378,9.943e-05,2]
[335339683,1724130632450,-298.62086198,9.943e-05,2]
[335339684,1724130632461,-911.46,9.943e-05,2]
[335339685,1724130632471,-331.2684472,9.943e-05,2]
[335339686,1724130632482,-909.63404358,9.943e-05,2]
[335339687,1724130632493,-756.03810701,9.943e-05,2]
[335339688,1724130632503,-1182.71091713,9.943e-05,2]
[335339689,1724130632517,-953.4260579,9.943e-05,2]
[335339690,1724130632530,-857.30470671,9.943e-05,2]
[335339691,1724130632543,-5285.7693527,9.943e-05,2]
[335339692,1724130632553,-300.0,9.987e-05,2]
[335339693,1724130632562,-300.0,9.987e-05,2]
[335339694,1724130632571,-446.88360849,9.988e-05,2]
[335339695,1724130632583,-1941.09161472,9.988e-05,2]
[335339696,1724130632593,-6169.82146297,9.988e-05,2]
[335339697,1724130632605,-1311.16777197,9.988e-05,2]
[335339698,1724130632618,-552.46305185,9.988e-05,2]
[335339699,1724130632630,-2255.73111815,9.988e-05,2]
[335339700,1724130632641,-5295.56352255,9.988e-05,2]
[335339701,1724130632652,-4957.06675285,9.988e-05,2]
[335339702,1724130632664,-2805.46655057,9.988e-05,2]
[335339703,1724130632685,-5530.51723118,9.988e-05,2]
[335339704,1724130638140,-2387.97522321,9.943e-05,2]
[335339705,1724130638150,-21122.20253791,9.988e-05,2]
[335339706,1724130638160,-150.0,9.998e-05,2]
[335339707,1724130638169,-448.53,0.0001,2]
[335339708,1724130638179,-1050.0,0.0001,2]
[335339709,1724130638188,-3098.03931686,0.0001,2]
[335339710,1724130638197,-546.9938583,0.00010009,2]
[335339711,1724130638206,-601.86371233,0.00010026,2]
[335339712,1724130638215,-155.0,0.00010026,2]
[335339713,1724130638225,-907.46872764,0.00010026,2]
[335339714,1724130638234,-1300.0,0.0001005,2]
[335339715,1724130638243,-700.0,0.0001006,2]
[335339716,1724130638252,-1300.0,0.00010078,2]
[335339717,1724130638261,-500.0,0.00010112,2]
[335339718,1724130638271,-500.0,0.00010159,2]
[335339719,1724130638280,-974.08,0.00010159,2]
[335339720,1724130638289,-907.7,0.00010175,2]
[335339721,1724130638299,-500.0,0.0001019,2]
[335339722,1724130638308,-500.0,0.00010219,2]
[335339723,1724130638317,-180.39,0.00010227,2]
[335339724,1724130638326,-500.0,0.00010231,2]
[335339725,1724130638336,-500.0,0.00010273,2]
[335339726,1724130638345,-4982.2,0.00010296,2]
[335339727,1724130638355,-500.0,0.00010311,2]
[335339728,1724130638364,-500.0,0.00010345,2]
[335339729,1724130638374,-9655.03352551,0.00010422,2]
[335339730,1724130638383,-362.48,0.00010458,2]
[335339731,1724130638392,-500.0,0.0001046,2]
[335339732,1724130638402,-1300.0,0.00010505,2]
[335339733,1724130638411,-211.18107492,0.00010566,2]
[335339734,1724130638420,-1300.0,0.00010607,2]
[335339735,1724130638429,-1300.0,0.00010609,2]
[335339736,1724130638438,-1300.0,0.00010619,2]
[335339737,1724130638446,-500.0,0.00010639,2]
[335339738,1724130638455,-1300.0,0.00010689,2]
[335339739,1724130638464,-700.0,0.00010723,2]
[335339740,1724130638473,-500.0,0.00010734,2]
[335339741,1724130638483,-416.81027458,0.00010835,2]
[335339742,1724130638491,-155.04,0.00010849,2]
[335339743,1724130638500,-447.0,0.00010854,2]
[335339744,1724130638509,-551.0,0.00010854,2]
[335339745,1724130638518,-1896.0,0.00010854,2]
[335339746,1724130638528,-247.0,0.00010854,2]
[335339747,1724130638537,-3319.0,0.00010854,2]
[335339749,1724130638546,-1165.0,0.00010854,2]
[335339751,1724130638555,-764.0,0.00010854,2]
[335339753,1724130638564,-293.785,0.00010854,2]
[335339755,1724130638573,-3727.0,0.00010854,2]
[335339756,1724130638582,-5846.0,0.00010854,2]
[335339758,1724130638591,-21775.0,0.00010854,2]
[335339760,1724130638600,-1674.0,0.00010855,2]
[335339762,1724130638609,-1205.0,0.00010855,2]
[335339764,1724130638618,-304.17876895,0.00010861,2]
[335339765,1724130638627,-296.0,0.00010878,2]
[335339767,1724130638636,-500.0,0.00010882,2]
[335339770,1724130638645,-1300.0,0.00010884,2]
[335339772,1724130638654,-152.67439,0.0001089,2]
[335339774,1724130638663,-1424.43096,0.0001089,2]
[335339777,1724130638673,-531.44515046,0.0001089,2]
[335339780,1724130638686,-202.9138,0.000109,2]
[335339782,1724130638695,-1069.1205,0.000109,2]
[335339783,1724130638705,-274.8809,0.000109,2]
[335339785,1724130638714,-1000.0,0.000109,2]
[335339787,1724130638725,-1007.0,0.000109,2]
[335339788,1724130638734,-880.0,0.00010907,2]
[335339789,1724130638743,-500.0,0.00010913,2]
[335339790,1724130638752,-151.94,0.00010959,2]
[335339791,1724130638762,-250.0,0.00010959,2]
[335339792,1724130638771,-193.9,0.00010959,2]
[335339793,1724130638780,-161.58,0.00010959,2]
[335339794,1724130638789,-807.95,0.00010959,2]
[335339795,1724130638800,-150.0,0.00010964,2]
[335339796,1724130638811,-623.0,0.00010964,2]
[335339797,1724130638820,-1258.0,0.00010964,2]
[335339798,1724130638830,-1543.0,0.00010964,2]
[335339799,1724130638840,-1923.0,0.00010964,2]
[335339800,1724130638849,-810.0,0.00010964,2]
[335339801,1724130638859,-1137.0,0.00010964,2]
[335339802,1724130638868,-556.0,0.00010964,2]
[335339803,1724130638877,-200.0,0.00010973,2]
[335339804,1724130638887,-420.0,0.00010985,2]
[335339805,1724130638896,-420.0,0.00010985,2]
[335339806,1724130638905,-2089.9964531,0.00010997,2]
[335339807,1724130638914,-711.9829295,0.00010997,2]
[335339808,1724130638923,-163.34208761,0.00010997,2]
[335339809,1724130638931,-8500.0,0.00010999,2]
[335339810,1724130638940,-500.0,0.00010999,2]
[335339811,1724130638949,-500.0,0.00010999,2]
[335339812,1724130638959,-500.0,0.00010999,2]
[335339813,1724130638967,-335.85584655,0.00010999,2]
[335339814,1724130638976,-873.96,0.00010999,2]